[Event "*** Titled Tuesday Blitz"]
[Site "Chess.com"]
[Date "2020.04.14"]
[Round "5"]
[White "SahaNeelash"]
[Black "XDPS"]
[Result "0-1"]
[WhiteElo "2563"]
[BlackElo "2740"]
[TimeControl "180+1"]
[EndTime "10:47:52 PDT"]
[Termination "XDPS won by resignation"]

1. d4 {[%clk 0:02:50.4]} 1... Nf6 {[%clk 0:02:57.7]} 2. Bg5 {[%clk 0:02:48]}
2... d5 {[%clk 0:02:56.7]} 3. e3 {[%clk 0:02:47.1]} 3... Bg4 {[%clk 0:02:55.1]}
4. f3 {[%clk 0:02:45.7]} 4... Bh5 {[%clk 0:02:53.4]} 5. Ne2 {[%clk 0:02:45.2]}
5... Nbd7 {[%clk 0:02:52.2]} 6. Nf4 {[%clk 0:02:43.8]} 6... Bg6 {[%clk
0:02:52.5]} 7. Nxg6 {[%clk 0:02:43.6]} 7... hxg6 {[%clk 0:02:52]} 8. Nd2 {[%clk
0:02:40.9]} 8... c6 {[%clk 0:02:51.4]} 9. c3 {[%clk 0:02:36.7]} 9... e5 {[%clk
0:02:50.6]} 10. e4 {[%clk 0:02:28.1]} 10... dxe4 {[%clk 0:02:49.6]} 11. Nxe4
{[%clk 0:02:24]} 11... Qc7 {[%clk 0:02:42.1]} 12. Ng3 {[%clk 0:01:47.1]} 12...
exd4 {[%clk 0:02:38.8]} 13. Qxd4 {[%clk 0:01:48]} 13... Bd6 {[%clk 0:02:36.2]}
14. Ne2 {[%clk 0:01:27.4]} 14... Bc5 {[%clk 0:02:15.1]} 15. Qf4 {[%clk
0:01:22.2]} 15... Qb6 {[%clk 0:02:07.2]} 16. O-O-O {[%clk 0:01:17]} 16... O-O
{[%clk 0:01:49.2]} 17. Kb1 {[%clk 0:01:11.3]} 17... Nd5 {[%clk 0:01:47.1]} 18.
Qa4 {[%clk 0:01:03.1]} 18... Rfe8 {[%clk 0:01:47.1]} 19. Nd4 {[%clk 0:01:00.1]}
19... Nxc3+ {[%clk 0:01:45.9]} 0-1

[Event "*** Titled Tuesday Blitz"]
[Site "Chess.com"]
[Date "2020.04.14"]
[Round "5"]
[White "RaunakSadhwani2005"]
[Black "SameerMujumdar"]
[Result "1-0"]
[WhiteElo "2803"]
[BlackElo "2410"]
[TimeControl "180+1"]
[EndTime "10:47:53 PDT"]
[Termination "RaunakSadhwani2005 won by resignation"]

1. c4 {[%clk 0:03:00.9]} 1... Nf6 {[%clk 0:02:59.3]} 2. Nc3 {[%clk 0:03:01.2]}
2... g6 {[%clk 0:03:00.2]} 3. e4 {[%clk 0:03:00.6]} 3... Bg7 {[%clk 0:03:01.1]}
4. d4 {[%clk 0:03:00.8]} 4... d6 {[%clk 0:03:00.9]} 5. Nf3 {[%clk 0:03:01.1]}
5... O-O {[%clk 0:03:01.3]} 6. Be2 {[%clk 0:03:01.6]} 6... Na6 {[%clk
0:03:01.8]} 7. O-O {[%clk 0:03:01.4]} 7... e5 {[%clk 0:03:02.3]} 8. Be3 {[%clk
0:03:01.5]} 8... Ng4 {[%clk 0:02:59.1]} 9. Bg5 {[%clk 0:03:01.6]} 9... Qe8
{[%clk 0:02:59.6]} 10. c5 {[%clk 0:03:00.7]} 10... exd4 {[%clk 0:02:52.6]} 11.
Nd5 {[%clk 0:03:00.3]} 11... Be6 {[%clk 0:02:20.7]} 12. Ne7+ {[%clk 0:02:44]}
12... Kh8 {[%clk 0:02:19.7]} 13. Nxd4 {[%clk 0:02:44.5]} 13... Nf6 {[%clk
0:02:11.2]} 14. cxd6 {[%clk 0:02:25.2]} 14... Nxe4 {[%clk 0:02:01.1]} 15. Nxe6
{[%clk 0:02:15.1]} 15... fxe6 {[%clk 0:01:59.8]} 16. d7 {[%clk 0:02:09.6]} 16...
Qf7 {[%clk 0:01:58.1]} 17. Nc8 {[%clk 0:02:06.9]} 17... Bf6 {[%clk 0:01:48.6]}
18. Bxf6+ {[%clk 0:02:03.4]} 18... Qxf6 {[%clk 0:01:43.2]} 19. Bxa6 {[%clk
0:01:48.3]} 19... bxa6 {[%clk 0:01:44.1]} 20. Qc2 {[%clk 0:01:48.1]} 20... Nd6
{[%clk 0:01:37.3]} 21. Qc6 {[%clk 0:01:48.4]} 21... Rb8 {[%clk 0:01:30.9]} 22.
Qxc7 {[%clk 0:01:46.7]} 22... Rxb2 {[%clk 0:01:22.6]} 23. Qxd6 {[%clk
0:01:41.2]} 23... Rxf2 {[%clk 0:01:19.9]} 24. Qxf8+ {[%clk 0:01:40.2]} 24...
Qxf8 {[%clk 0:01:17.4]} 25. Rxf2 {[%clk 0:01:40.6]} 1-0

[Event "*** Titled Tuesday Blitz"]
[Site "Chess.com"]
[Date "2020.04.14"]
[Round "5"]
[White "BocharovD"]
[Black "Ba_clbaf_osed_ingo_3v21"]
[Result "1-0"]
[WhiteElo "2873"]
[BlackElo "2577"]
[TimeControl "180+1"]
[EndTime "10:47:54 PDT"]
[Termination "BocharovD won by resignation"]

1. c4 {[%clk 0:03:00.9]} 1... c5 {[%clk 0:02:59.8]} 2. Nf3 {[%clk 0:02:59.8]}
2... Nc6 {[%clk 0:02:59.1]} 3. d4 {[%clk 0:02:59.9]} 3... cxd4 {[%clk
0:02:58.8]} 4. Nxd4 {[%clk 0:03:00.8]} 4... Nf6 {[%clk 0:02:59.4]} 5. Nc3 {[%clk
0:03:00.6]} 5... e6 {[%clk 0:02:59]} 6. a3 {[%clk 0:03:00.6]} 6... d5 {[%clk
0:02:51.5]} 7. cxd5 {[%clk 0:02:56]} 7... exd5 {[%clk 0:02:49.6]} 8. Bg5 {[%clk
0:02:49.9]} 8... Be7 {[%clk 0:02:48.8]} 9. e3 {[%clk 0:02:49.8]} 9... O-O {[%clk
0:02:48.2]} 10. Be2 {[%clk 0:02:50]} 10... Be6 {[%clk 0:02:42.1]} 11. O-O {[%clk
0:02:49]} 11... h6 {[%clk 0:02:41.1]} 12. Bf4 {[%clk 0:02:42]} 12... Qd7 {[%clk
0:02:34.4]} 13. Rc1 {[%clk 0:02:32]} 13... Rac8 {[%clk 0:02:31.6]} 14. Ncb5
{[%clk 0:02:19]} 14... a6 {[%clk 0:02:28.8]} 15. Nxc6 {[%clk 0:02:00.4]} 15...
Rxc6 {[%clk 0:02:20.5]} 16. Rxc6 {[%clk 0:01:52.2]} 16... Qxc6 {[%clk
0:02:20.4]} 17. Nd4 {[%clk 0:01:51.4]} 17... Qd7 {[%clk 0:02:15]} 18. Nxe6
{[%clk 0:01:46.5]} 18... fxe6 {[%clk 0:02:14.7]} 19. Bd3 {[%clk 0:01:45.1]}
19... Rc8 {[%clk 0:02:11]} 20. Be5 {[%clk 0:01:44.7]} 20... Qc6 {[%clk
0:01:48.6]} 21. h3 {[%clk 0:01:40.7]} 21... Nd7 {[%clk 0:01:46.1]} 22. Bd4
{[%clk 0:01:32.8]} 22... Bf6 {[%clk 0:01:40.8]} 23. Qg4 {[%clk 0:01:31.4]} 23...
Nf8 {[%clk 0:01:27.6]} 24. Bxf6 {[%clk 0:01:29.8]} 1-0

[Event "*** Titled Tuesday Blitz"]
[Site "Chess.com"]
[Date "2020.04.14"]
[Round "5"]
[White "CastleOasisChess"]
[Black "dey2580"]
[Result "0-1"]
[WhiteElo "2081"]
[BlackElo "2489"]
[TimeControl "180+1"]
[EndTime "10:48:01 PDT"]
[Termination "dey2580 won by resignation"]

1. d4 {[%clk 0:03:00.9]} 1... Nf6 {[%clk 0:02:59.6]} 2. e3 {[%clk 0:03:00.9]}
2... e6 {[%clk 0:02:59.7]} 3. Bd3 {[%clk 0:03:01.3]} 3... c5 {[%clk 0:03:00]} 4.
c3 {[%clk 0:03:00.2]} 4... b6 {[%clk 0:03:00.2]} 5. f4 {[%clk 0:02:59.5]} 5...
Bb7 {[%clk 0:03:00.3]} 6. Nf3 {[%clk 0:03:00.2]} 6... d6 {[%clk 0:02:59]} 7.
Nbd2 {[%clk 0:03:00.5]} 7... g6 {[%clk 0:02:58.9]} 8. O-O {[%clk 0:03:01]} 8...
Bg7 {[%clk 0:02:59.3]} 9. Qe2 {[%clk 0:03:01.6]} 9... O-O {[%clk 0:02:59.1]} 10.
e4 {[%clk 0:03:02.1]} 10... Nc6 {[%clk 0:02:55.1]} 11. e5 {[%clk 0:03:02.3]}
11... dxe5 {[%clk 0:02:53.6]} 12. fxe5 {[%clk 0:03:03.2]} 12... Nd5 {[%clk
0:02:44.8]} 13. Ne4 {[%clk 0:02:54.8]} 13... cxd4 {[%clk 0:02:44.8]} 14. cxd4
{[%clk 0:02:53.1]} 14... Ndb4 {[%clk 0:02:44.9]} 15. Nd6 {[%clk 0:02:42.9]}
15... Nxd3 {[%clk 0:02:42]} 16. Qxd3 {[%clk 0:02:39.9]} 16... Nb4 {[%clk
0:02:34.8]} 17. Qb3 {[%clk 0:02:34.5]} 17... Bxf3 {[%clk 0:02:28.9]} 18. Rxf3
{[%clk 0:02:31.9]} 18... Nd5 {[%clk 0:02:24.9]} 19. Bd2 {[%clk 0:02:24.3]} 19...
Qh4 {[%clk 0:02:21.9]} 20. Rc1 {[%clk 0:02:11.7]} 20... Qxd4+ {[%clk 0:02:19.9]}
21. Be3 {[%clk 0:01:27.9]} 21... Nxe3 {[%clk 0:02:09.4]} 22. Qxe3 {[%clk
0:01:27.3]} 22... Qxe3+ {[%clk 0:02:09.3]} 23. Rxe3 {[%clk 0:01:27.5]} 23... Bh6
{[%clk 0:02:09.7]} 24. Ree1 {[%clk 0:01:19.6]} 24... Bxc1 {[%clk 0:02:09.4]} 25.
Rxc1 {[%clk 0:01:20.5]} 25... f6 {[%clk 0:02:09.3]} 26. exf6 {[%clk 0:01:19.5]}
26... Rxf6 {[%clk 0:02:08.9]} 27. g3 {[%clk 0:01:18.7]} 27... Rd8 {[%clk
0:02:08.1]} 28. Ne4 {[%clk 0:01:18.5]} 28... Rf5 {[%clk 0:02:06.2]} 29. Kg2
{[%clk 0:01:15.5]} 29... Re5 {[%clk 0:02:03.2]} 30. Nc3 {[%clk 0:01:03.1]} 30...
Rd2+ {[%clk 0:02:02.2]} 31. Kh3 {[%clk 0:01:02.1]} 31... Rxb2 {[%clk 0:02:00.2]}
0-1

[Event "*** Titled Tuesday Blitz"]
[Site "Chess.com"]
[Date "2020.04.14"]
[Round "5"]
[White "RATNAKARAN"]
[Black "The_Machine04"]
[Result "1-0"]
[WhiteElo "2556"]
[BlackElo "2374"]
[TimeControl "180+1"]
[EndTime "10:48:02 PDT"]
[Termination "RATNAKARAN won by checkmate"]

1. e4 {[%clk 0:03:00.9]} 1... d6 {[%clk 0:02:59.9]} 2. d4 {[%clk 0:03:00.1]}
2... Nf6 {[%clk 0:02:59.8]} 3. Nc3 {[%clk 0:03:00.4]} 3... e5 {[%clk 0:02:59.9]}
4. Nf3 {[%clk 0:02:59.5]} 4... Nbd7 {[%clk 0:02:59.5]} 5. Bc4 {[%clk 0:02:59]}
5... Be7 {[%clk 0:02:57.7]} 6. Bxf7+ {[%clk 0:02:59.2]} 6... Kxf7 {[%clk
0:02:57.1]} 7. Ng5+ {[%clk 0:02:59.8]} 7... Kg8 {[%clk 0:02:57.2]} 8. Ne6 {[%clk
0:03:00.3]} 8... Qe8 {[%clk 0:02:57.4]} 9. Nxc7 {[%clk 0:03:00.7]} 9... Qg6
{[%clk 0:02:57.6]} 10. O-O {[%clk 0:03:00.1]} 10... Rb8 {[%clk 0:02:53.8]} 11.
f4 {[%clk 0:02:59.5]} 11... h6 {[%clk 0:02:43.9]} 12. dxe5 {[%clk 0:02:54.7]}
12... dxe5 {[%clk 0:02:42.7]} 13. N3d5 {[%clk 0:02:53.4]} 13... Bc5+ {[%clk
0:02:13.9]} 14. Kh1 {[%clk 0:02:52.9]} 14... Nxe4 {[%clk 0:02:08.4]} 15. Be3
{[%clk 0:02:50.7]} 15... Bxe3 {[%clk 0:01:42.8]} 16. Ne7+ {[%clk 0:02:48.5]}
16... Kh7 {[%clk 0:01:40.2]} 17. Nxg6 {[%clk 0:02:49.1]} 17... Kxg6 {[%clk
0:01:08.5]} 18. Qd3 {[%clk 0:02:46.3]} 18... Nc5 {[%clk 0:00:44.8]} 19. Qxe3
{[%clk 0:02:45.4]} 19... exf4 {[%clk 0:00:40.5]} 20. Rxf4 {[%clk 0:02:44.4]}
20... b6 {[%clk 0:00:33.5]} 21. b4 {[%clk 0:02:38.9]} 21... Bb7 {[%clk 0:00:13]}
22. bxc5 {[%clk 0:02:37.1]} 22... Nxc5 {[%clk 0:00:13.6]} 23. Ne6 {[%clk
0:02:35.7]} 23... Rhe8 {[%clk 0:00:12.9]} 24. Qg3+ {[%clk 0:02:35.2]} 24... Kh5
{[%clk 0:00:12.1]} 25. Qg4# {[%clk 0:02:35]} 1-0

[Event "*** Titled Tuesday Blitz"]
[Site "Chess.com"]
[Date "2020.04.14"]
[Round "5"]
[White "Larina_Marija"]
[Black "Gerasimenyuk_Miha"]
[Result "0-1"]
[WhiteElo "2329"]
[BlackElo "2497"]
[TimeControl "180+1"]
[EndTime "10:48:02 PDT"]
[Termination "Gerasimenyuk_Miha won by resignation"]

1. e4 {[%clk 0:03:00.9]} 1... c6 {[%clk 0:02:57.5]} 2. d4 {[%clk 0:02:59]} 2...
d5 {[%clk 0:02:58.4]} 3. Nd2 {[%clk 0:02:57.5]} 3... dxe4 {[%clk 0:02:59.3]} 4.
Nxe4 {[%clk 0:02:57.2]} 4... Nf6 {[%clk 0:02:59.7]} 5. Nxf6+ {[%clk 0:02:56.9]}
5... gxf6 {[%clk 0:03:00.6]} 6. g3 {[%clk 0:02:48.7]} 6... h5 {[%clk 0:03:00.2]}
7. h4 {[%clk 0:02:47.8]} 7... Nd7 {[%clk 0:02:59.7]} 8. Bg2 {[%clk 0:02:46.6]}
8... Nb6 {[%clk 0:02:59]} 9. Ne2 {[%clk 0:02:44.5]} 9... Bg4 {[%clk 0:02:58.7]}
10. Qd3 {[%clk 0:02:31.9]} 10... Qd7 {[%clk 0:02:57]} 11. c3 {[%clk 0:02:27.5]}
11... O-O-O {[%clk 0:02:56.3]} 12. Bd2 {[%clk 0:02:01.9]} 12... e5 {[%clk
0:02:52.3]} 13. f3 {[%clk 0:01:58.7]} 13... Bf5 {[%clk 0:02:38.8]} 14. Qe3
{[%clk 0:01:58]} 14... Nc4 {[%clk 0:02:34.6]} 15. Qf2 {[%clk 0:01:52.6]} 15...
Nxd2 {[%clk 0:02:31.8]} 16. Kxd2 {[%clk 0:01:52]} 16... Bh6+ {[%clk 0:02:30.1]}
17. Ke1 {[%clk 0:01:49.6]} 17... exd4 {[%clk 0:02:28.1]} 18. cxd4 {[%clk
0:01:33.3]} 18... Rhe8 {[%clk 0:02:16.6]} 19. Rd1 {[%clk 0:01:19.7]} 19... Be3
{[%clk 0:02:00.5]} 20. Qf1 {[%clk 0:01:19.6]} 20... Qd6 {[%clk 0:01:54.9]} 21.
Bh3 {[%clk 0:01:15.5]} 21... Qb4+ {[%clk 0:01:48.7]} 22. Nc3 {[%clk 0:01:10.9]}
22... Bxd4+ {[%clk 0:01:46]} 23. Kd2 {[%clk 0:01:05.6]} 23... Bxc3+ {[%clk
0:01:44.1]} 0-1

[Event "*** Titled Tuesday Blitz"]
[Site "Chess.com"]
[Date "2020.04.14"]
[Round "5"]
[White "Maghalashvili"]
[Black "Ar4uha"]
[Result "0-1"]
[WhiteElo "2855"]
[BlackElo "2654"]
[TimeControl "180+1"]
[EndTime "10:48:28 PDT"]
[Termination "Ar4uha won by resignation"]

1. Nf3 {[%clk 0:03:00.9]} 1... Nf6 {[%clk 0:03:00]} 2. g3 {[%clk 0:03:01.5]}
2... e6 {[%clk 0:02:59.7]} 3. Bg2 {[%clk 0:03:02.2]} 3... d5 {[%clk 0:03:00.6]}
4. O-O {[%clk 0:03:02.7]} 4... Be7 {[%clk 0:03:01.5]} 5. c4 {[%clk 0:03:03.3]}
5... O-O {[%clk 0:03:02.4]} 6. b3 {[%clk 0:03:03.9]} 6... c5 {[%clk 0:03:02.6]}
7. cxd5 {[%clk 0:03:04.3]} 7... Nxd5 {[%clk 0:03:02.4]} 8. Bb2 {[%clk
0:03:04.2]} 8... Bf6 {[%clk 0:03:02.3]} 9. d4 {[%clk 0:03:00.1]} 9... cxd4
{[%clk 0:03:01.1]} 10. Nxd4 {[%clk 0:02:59.4]} 10... Nc6 {[%clk 0:03:01.8]} 11.
Nxc6 {[%clk 0:02:59]} 11... bxc6 {[%clk 0:03:02.7]} 12. Bxf6 {[%clk 0:02:59.2]}
12... Qxf6 {[%clk 0:03:02.8]} 13. Na3 {[%clk 0:02:59.6]} 13... Ba6 {[%clk
0:02:59.7]} 14. Rc1 {[%clk 0:02:53.3]} 14... Nc3 {[%clk 0:02:53.5]} 15. Rxc3
{[%clk 0:02:48.7]} 15... Qxc3 {[%clk 0:02:54.4]} 16. Bf3 {[%clk 0:02:44.7]}
16... Rfd8 {[%clk 0:02:52.3]} 17. Qb1 {[%clk 0:02:39.4]} 17... Rd2 {[%clk
0:02:46.6]} 18. Rc1 {[%clk 0:02:34.8]} 18... Qb2 {[%clk 0:02:33.4]} 19. Qxb2
{[%clk 0:02:31.2]} 19... Rxb2 {[%clk 0:02:34.3]} 20. Rxc6 {[%clk 0:02:29.2]}
20... Bb7 {[%clk 0:02:32.6]} 21. Rd6 {[%clk 0:02:27.9]} 21... Bxf3 {[%clk
0:02:31.9]} 22. exf3 {[%clk 0:02:28.2]} 22... Rxa2 {[%clk 0:02:32.3]} 23. Nc4
{[%clk 0:02:28.9]} 23... g6 {[%clk 0:02:29.7]} 24. Rd7 {[%clk 0:02:25.1]} 24...
a5 {[%clk 0:02:22.4]} 25. Kg2 {[%clk 0:02:15.9]} 25... Rc8 {[%clk 0:01:56.4]}
26. Ne5 {[%clk 0:02:05.3]} 26... Rf8 {[%clk 0:01:29.3]} 27. Ra7 {[%clk
0:02:00.6]} 27... Ra3 {[%clk 0:01:28]} 28. Nd7 {[%clk 0:01:57.3]} 28... Rd8
{[%clk 0:01:24.9]} 29. Ne5 {[%clk 0:01:57]} 29... Rf8 {[%clk 0:01:14]} 30. Nd7
{[%clk 0:01:55.9]} 30... Rd8 {[%clk 0:01:14.3]} 31. Ne5 {[%clk 0:01:55.9]} 31...
Rd2 {[%clk 0:01:14.8]} 32. Nc4 {[%clk 0:01:50.8]} 32... Rda2 {[%clk 0:01:11.5]}
33. Nxa3 {[%clk 0:01:48.8]} 33... Rxa3 {[%clk 0:01:12.4]} 34. h4 {[%clk
0:01:48.6]} 34... Rxb3 {[%clk 0:01:12.4]} 35. Rxa5 {[%clk 0:01:48]} 35... h5
{[%clk 0:01:12.9]} 0-1

[Event "*** Titled Tuesday Blitz"]
[Site "Chess.com"]
[Date "2020.04.14"]
[Round "5"]
[White "michaelk123"]
[Black "Noukii"]
[Result "1-0"]
[WhiteElo "2470"]
[BlackElo "2686"]
[TimeControl "180+1"]
[EndTime "10:48:36 PDT"]
[Termination "michaelk123 won by resignation"]

1. e4 {[%clk 0:03:00.9]} 1... c5 {[%clk 0:02:58.9]} 2. Nf3 {[%clk 0:03:01.3]}
2... d6 {[%clk 0:02:58.8]} 3. d4 {[%clk 0:03:00.3]} 3... cxd4 {[%clk 0:02:59.7]}
4. Qxd4 {[%clk 0:03:00.6]} 4... Nf6 {[%clk 0:02:59.7]} 5. Bg5 {[%clk 0:02:54.4]}
5... Nc6 {[%clk 0:02:53.1]} 6. Bb5 {[%clk 0:02:54.2]} 6... Qa5+ {[%clk 0:02:43]}
7. Nc3 {[%clk 0:02:54.1]} 7... Qxb5 {[%clk 0:02:43.4]} 8. Nxb5 {[%clk
0:02:53.8]} 8... Nxd4 {[%clk 0:02:44]} 9. Nfxd4 {[%clk 0:02:36.6]} 9... Nxe4
{[%clk 0:02:43.3]} 10. Nc7+ {[%clk 0:02:24.5]} 10... Kd8 {[%clk 0:02:40.4]} 11.
Nxa8 {[%clk 0:02:24.8]} 11... Nxg5 {[%clk 0:02:40.7]} 12. Nb5 {[%clk 0:02:23.1]}
12... a6 {[%clk 0:02:35.9]} 13. Nc3 {[%clk 0:02:16.5]} 13... b5 {[%clk
0:02:23.9]} 14. Nb6 {[%clk 0:01:53.5]} 14... Bb7 {[%clk 0:02:21]} 15. O-O {[%clk
0:01:35]} 15... e6 {[%clk 0:02:09.2]} 16. a4 {[%clk 0:01:34]} 16... Kc7 {[%clk
0:02:01.7]} 17. a5 {[%clk 0:01:16.6]} 17... Be7 {[%clk 0:01:34.1]} 18. Rfe1
{[%clk 0:01:07.1]} 18... d5 {[%clk 0:01:05.6]} 19. Nbxd5+ {[%clk 0:00:57.2]} 1-0

[Event "*** Titled Tuesday Blitz"]
[Site "Chess.com"]
[Date "2020.04.14"]
[Round "5"]
[White "GMSrinath"]
[Black "gmjoey1"]
[Result "1/2-1/2"]
[WhiteElo "2776"]
[BlackElo "2564"]
[TimeControl "180+1"]
[EndTime "10:48:37 PDT"]
[Termination "Game drawn by agreement"]

1. Nf3 {[%clk 0:03:00.9]} 1... Nf6 {[%clk 0:02:59.1]} 2. c4 {[%clk 0:03:01.8]}
2... c5 {[%clk 0:02:52.1]} 3. d4 {[%clk 0:03:00.9]} 3... cxd4 {[%clk 0:02:51.3]}
4. Nxd4 {[%clk 0:03:01.8]} 4... e6 {[%clk 0:02:49]} 5. g3 {[%clk 0:03:01.1]}
5... Qb6 {[%clk 0:02:46.3]} 6. Bg2 {[%clk 0:03:01.3]} 6... Bc5 {[%clk
0:02:44.1]} 7. e3 {[%clk 0:02:56.7]} 7... Nc6 {[%clk 0:02:43.8]} 8. Nc2 {[%clk
0:02:55.9]} 8... d5 {[%clk 0:02:42.5]} 9. cxd5 {[%clk 0:02:53.9]} 9... Nxd5
{[%clk 0:02:42.2]} 10. O-O {[%clk 0:02:54.5]} 10... O-O {[%clk 0:02:41.3]} 11.
Nd2 {[%clk 0:02:54.3]} 11... Rd8 {[%clk 0:02:37.2]} 12. Qe2 {[%clk 0:02:54.3]}
12... Qc7 {[%clk 0:02:29.7]} 13. Ne4 {[%clk 0:02:54.2]} 13... Be7 {[%clk
0:02:27.9]} 14. Bd2 {[%clk 0:02:53.3]} 14... b6 {[%clk 0:02:19.8]} 15. Rac1
{[%clk 0:02:53.6]} 15... Bb7 {[%clk 0:02:18.9]} 16. Rfd1 {[%clk 0:02:53.7]}
16... Rac8 {[%clk 0:02:16.6]} 17. Nc3 {[%clk 0:02:52.7]} 17... Nxc3 {[%clk
0:02:11.6]} 18. Bxc3 {[%clk 0:02:53.6]} 18... Rxd1+ {[%clk 0:02:10.9]} 19. Rxd1
{[%clk 0:02:54.5]} 19... Rd8 {[%clk 0:02:10.5]} 20. h4 {[%clk 0:02:53.7]} 20...
Rxd1+ {[%clk 0:01:41.9]} 21. Qxd1 {[%clk 0:02:54.6]} 21... Qd8 {[%clk
0:01:41.7]} 22. Qe2 {[%clk 0:02:39.9]} 22... Bf6 {[%clk 0:01:31]} 23. Bxf6
{[%clk 0:02:30.9]} 23... gxf6 {[%clk 0:01:26.4]} 24. Qc4 {[%clk 0:02:31.8]}
24... Ne5 {[%clk 0:01:22.8]} 25. Qd4 {[%clk 0:02:30.8]} 25... Qxd4 {[%clk
0:01:18.1]} 26. Nxd4 {[%clk 0:02:31.7]} 26... Bxg2 {[%clk 0:01:17.2]} 27. Kxg2
{[%clk 0:02:32.6]} 27... Kf8 {[%clk 0:01:16]} 28. b4 {[%clk 0:02:29.6]} 28... a6
{[%clk 0:01:07.7]} 29. f4 {[%clk 0:02:23.1]} 29... Nd3 {[%clk 0:01:05.2]} 30. a3
{[%clk 0:02:22.1]} 30... f5 {[%clk 0:01:01.4]} 31. Kf3 {[%clk 0:02:21.9]} 31...
Nb2 {[%clk 0:00:59]} 32. Ke2 {[%clk 0:02:21]} 32... Nc4 {[%clk 0:00:58.2]} 33.
Nc2 {[%clk 0:02:20.3]} 33... h5 {[%clk 0:00:55.5]} 34. Kd3 {[%clk 0:02:07.4]}
34... Nd6 {[%clk 0:00:53.9]} 35. Nd4 {[%clk 0:02:06.2]} 35... Ne4 {[%clk
0:00:51.5]} 36. Ne2 {[%clk 0:02:06.5]} 36... Ke7 {[%clk 0:00:51]} 37. a4 {[%clk
0:02:06]} 37... Kd6 {[%clk 0:00:50]} 38. Kc4 {[%clk 0:02:06.5]} 38... Nd2+
{[%clk 0:00:47.1]} 39. Kc3 {[%clk 0:02:06.4]} 39... Ne4+ {[%clk 0:00:46.8]} 40.
Kc4 {[%clk 0:02:06.8]} 40... Nd2+ {[%clk 0:00:45.4]} 1/2-1/2

[Event "*** Titled Tuesday Blitz"]
[Site "Chess.com"]
[Date "2020.04.14"]
[Round "5"]
[White "Promacherr"]
[Black "CalinGheorghiu"]
[Result "1-0"]
[WhiteElo "2610"]
[BlackElo "2347"]
[TimeControl "180+1"]
[EndTime "10:48:38 PDT"]
[Termination "Promacherr won by resignation"]

1. e4 {[%clk 0:03:00]} 1... e6 {[%clk 0:02:59.5]} 2. d4 {[%clk 0:02:59.7]} 2...
d5 {[%clk 0:02:59.8]} 3. Nd2 {[%clk 0:03:00.1]} 3... c5 {[%clk 0:02:55]} 4. exd5
{[%clk 0:03:00.2]} 4... Qxd5 {[%clk 0:02:53.2]} 5. Ngf3 {[%clk 0:03:00.8]} 5...
cxd4 {[%clk 0:02:52.7]} 6. Bc4 {[%clk 0:03:01.3]} 6... Qd6 {[%clk 0:02:52.2]} 7.
O-O {[%clk 0:03:01.7]} 7... Nf6 {[%clk 0:02:52]} 8. Nb3 {[%clk 0:03:00.1]} 8...
Nc6 {[%clk 0:02:52]} 9. Nbxd4 {[%clk 0:02:52.5]} 9... Nxd4 {[%clk 0:02:51.2]}
10. Nxd4 {[%clk 0:02:53.4]} 10... a6 {[%clk 0:02:50]} 11. Re1 {[%clk 0:02:51.7]}
11... Qc7 {[%clk 0:02:49.3]} 12. Bf1 {[%clk 0:02:50.4]} 12... Bd6 {[%clk
0:02:42.6]} 13. Nf5 {[%clk 0:02:47.9]} 13... Bxh2+ {[%clk 0:02:41.9]} 14. Kh1
{[%clk 0:02:47.6]} 14... Kf8 {[%clk 0:02:16.5]} 15. Qd4 {[%clk 0:02:45.6]} 15...
h5 {[%clk 0:02:00.3]} 16. Bg5 {[%clk 0:02:39.5]} 16... exf5 {[%clk 0:01:27.7]}
17. Bxf6 {[%clk 0:02:39.2]} 17... gxf6 {[%clk 0:01:27.6]} 18. Qxf6 {[%clk
0:02:40.1]} 18... Rh7 {[%clk 0:01:25.7]} 19. Rad1 {[%clk 0:02:36.5]} 19... Bd7
{[%clk 0:00:48.7]} 20. Qe7+ {[%clk 0:02:35.8]} 20... Kg8 {[%clk 0:00:47.8]} 21.
Rxd7 {[%clk 0:02:36.7]} 21... Qf4 {[%clk 0:00:40.5]} 22. Rd8+ {[%clk 0:02:07.7]}
22... Rxd8 {[%clk 0:00:39.7]} 23. Qxd8+ {[%clk 0:02:08.6]} 23... Kg7 {[%clk
0:00:40.3]} 24. Re8 {[%clk 0:02:09.5]} 24... Qd6 {[%clk 0:00:25.2]} 25. Qg5+
{[%clk 0:01:58.8]} 25... Qg6 {[%clk 0:00:21.7]} 26. Qxg6+ {[%clk 0:01:57.3]}
26... fxg6 {[%clk 0:00:22.6]} 27. Re7+ {[%clk 0:01:57.4]} 27... Kh6 {[%clk
0:00:22.4]} 28. Rxh7+ {[%clk 0:01:58.3]} 28... Kxh7 {[%clk 0:00:22.6]} 29. Kxh2
{[%clk 0:01:58.2]} 1-0

[Event "*** Titled Tuesday Blitz"]
[Site "Chess.com"]
[Date "2020.04.14"]
[Round "5"]
[White "silverback96"]
[Black "Mikhail_Biryukov"]
[Result "0-1"]
[WhiteElo "2210"]
[BlackElo "2596"]
[TimeControl "180+1"]
[EndTime "10:48:53 PDT"]
[Termination "Mikhail_Biryukov won by resignation"]

1. d4 {[%clk 0:03:00.9]} 1... Nf6 {[%clk 0:02:56.5]} 2. c4 {[%clk 0:03:01.4]}
2... e6 {[%clk 0:02:51.8]} 3. g3 {[%clk 0:03:01.7]} 3... d5 {[%clk 0:02:50.4]}
4. Bg2 {[%clk 0:02:59.9]} 4... dxc4 {[%clk 0:02:50.4]} 5. Nf3 {[%clk 0:02:58.9]}
5... Bb4+ {[%clk 0:02:50.3]} 6. Bd2 {[%clk 0:02:53.7]} 6... c5 {[%clk
0:02:50.7]} 7. Bxb4 {[%clk 0:02:47.1]} 7... cxb4 {[%clk 0:02:50.6]} 8. Ne5
{[%clk 0:02:46.8]} 8... O-O {[%clk 0:02:47.6]} 9. Nxc4 {[%clk 0:02:34.1]} 9...
Nc6 {[%clk 0:02:47]} 10. e3 {[%clk 0:02:34.6]} 10... e5 {[%clk 0:02:46.1]} 11.
dxe5 {[%clk 0:02:29.9]} 11... Qxd1+ {[%clk 0:02:44.6]} 12. Kxd1 {[%clk
0:02:30.8]} 12... Ng4 {[%clk 0:02:44.8]} 13. Ke2 {[%clk 0:02:30.6]} 13... Ngxe5
{[%clk 0:02:29.2]} 14. Nxe5 {[%clk 0:02:30.1]} 14... Nxe5 {[%clk 0:02:30.1]} 15.
Rc1 {[%clk 0:02:14.4]} 15... Bg4+ {[%clk 0:02:26.3]} 16. f3 {[%clk 0:02:09.6]}
16... Bd7 {[%clk 0:02:26.1]} 17. Nd2 {[%clk 0:01:58.8]} 17... Bb5+ {[%clk
0:02:25.4]} 18. Kd1 {[%clk 0:01:47.9]} 18... Rfd8 {[%clk 0:02:13.9]} 19. Rc5
{[%clk 0:01:39.2]} 19... Nc4 {[%clk 0:02:12.5]} 20. Rxc4 {[%clk 0:01:02.9]}
20... Bxc4 {[%clk 0:02:11.2]} 21. Ke1 {[%clk 0:00:58.5]} 21... Ba6 {[%clk
0:02:05.9]} 22. Nb3 {[%clk 0:00:57.2]} 22... Rd3 {[%clk 0:02:02]} 23. Kf2 {[%clk
0:00:56.9]} 23... Rc8 {[%clk 0:02:01]} 24. Bf1 {[%clk 0:00:19.9]} 24... Rc2+
{[%clk 0:01:58.6]} 25. Kg1 {[%clk 0:00:12.9]} 25... Rxe3 {[%clk 0:01:58.6]} 26.
Bxa6 {[%clk 0:00:13.8]} 26... bxa6 {[%clk 0:01:57.9]} 27. Rd1 {[%clk 0:00:14.1]}
27... g6 {[%clk 0:01:57.8]} 0-1